bitfinex-derivatives/quotes_ETHF0:USTF0_20241008
["timestamp","ask_amount","ask_price","bid_price","bid_amount"]
[1728395706473,0.40911,2445.2,2445.0,0.40912]
[1728395706673,1.0227,2445.4,2444.7,0.3951]
[1728395706876,0.40912,2445.2,2445.0,0.40914]
[1728395707078,0.40911,2445.2,2445.0,0.40913]
[1728395707273,1.0227,2445.4,2444.7,0.3951]
[1728395707585,0.40913,2445.1,2444.9,0.40915]
[1728395707769,0.40916,2444.9,2444.7,0.80427]
[1728395708078,0.40921,2444.6,2444.5,0.40922]
[1728395708267,0.40921,2444.6,2444.0,3.93]
[1728395708268,3.2078,2444.9,2444.2,0.8152]
[1728395708473,0.40925,2444.3,2444.2,1.22447]
[1728395708668,0.40925,2444.3,2444.2,0.8152]
[1728395708882,4.23086,2444.5,2443.6,3.2078]
[1728395709173,3.93,2444.8,2443.9,0.40931]
[1728395709174,0.40929,2444.1,2443.9,0.40931]
[1728395709374,0.4093,2444.1,2444.0,0.4093]
[1728395709779,0.40932,2444.0,2443.6,0.8188]
[1728395709980,4.231,2444.2,2443.9,0.40932]
[1728395710176,1.02325,2444.1,2443.6,0.8188]
[1728395710475,1.02316,2444.3,2443.6,1.84222]
[1728395710680,0.4061,2444.4,2443.7,1.02339]
[1728395710877,0.40926,2444.3,2444.2,0.40926]
[1728395711274,4.0912,2444.3,2443.7,1.02339]
[1728395711477,3.2078,2444.5,2443.7,1.02339]
[1728395711683,0.40924,2444.4,2444.3,0.40925]
[1728395711979,3.61703,2444.5,2444.3,0.40925]
[1728395712486,0.40924,2444.4,2444.3,0.40925]
[1728395712776,3.2078,2444.5,2444.4,0.40924]
[1728395713176,2.5658,2444.5,2444.4,0.40924]
[1728395713373,0.40913,2445.1,2444.9,0.40915]
[1728395713678,0.4091,2445.3,2445.1,0.40911]
[1728395713878,3.6023,2445.5,2445.0,0.40913]
[1728395713879,1.43175,2445.4,2445.0,0.40913]
[1728395714086,0.40913,2445.1,2444.9,0.40914]
[1728395714277,3.2078,2445.5,2444.8,0.413]
[1728395714483,0.40903,2445.7,2445.0,4.23062]
[1728395714679,1.02248,2445.9,2445.0,4.23062]
[1728395714878,0.77183007,2446.0,2445.0,3.2078]
[1728395715178,4.23021,2446.1,2445.0,3.2078]
[1728395715377,0.40901,2445.8,2445.6,0.40903]
[1728395715777,0.409,2445.9,2445.6,0.40903]
[1728395715981,3.2078,2446.0,2445.4,1.02268]
[1728395716185,3.2078,2446.0,2445.3,3.6007]
[1728395716186,3.61671,2446.4,2446.2,0.40893]
[1728395716578,0.40895,2446.1,2445.7,0.3962]
[1728395716773,7.2958,2446.4,2445.7,0.3962]
[1728395716774,0.40897,2446.0,2445.7,0.3962]
[1728395717081,0.40897,2446.0,2445.4,1.42605]
[1728395717476,0.40897,2446.0,2445.8,0.40899]
[1728395717673,0.40896,2446.1,2445.4,1.42605]
[1728395717879,0.40897,2446.0,2445.9,0.40898]
[1728395718077,4.23021,2446.1,2445.7,0.40901]
[1728395718282,0.409,2445.9,2445.8,0.409]
[1728395719480,0.40898,2446.0,2445.8,0.409]
[1728395719783,3.2078,2446.1,2445.4,0.4034]
[1728395719984,0.40901,2445.8,2445.6,0.40902]
[1728395720281,0.40903,2445.7,2445.5,0.40904]
[1728395720486,1.02247,2445.9,2445.5,0.40904]
[1728395720682,0.40905,2445.6,2445.4,0.40905]
[1728395720986,0.40903,2445.7,2445.3,3.9969]
[1728395721179,1.44816,2446.0,2445.3,3.9969]
[1728395721180,0.4257,2446.0,2445.3,3.9969]
[1728395721387,0.409,2445.9,2445.8,0.409]
[1728395721782,1.02239,2446.1,2445.3,3.9969]
[1728395721986,0.40903,2445.7,2445.6,0.40903]
[1728395722177,1.02243,2446.0,2445.3,3.9969]
[1728395722378,3.2078,2446.1,2445.3,3.9969]
[1728395722676,0.4091,2445.3,2445.2,0.4091]
[1728395722877,3.2078,2445.7,2444.8,0.4207]
[1728395723079,3.2078,2445.7,2445.1,0.40912]
[1728395723080,0.40911,2445.2,2445.1,0.40912]
[1728395723384,0.40905,2445.6,2445.4,0.40905]
[1728395723685,0.40901,2445.8,2445.7,0.40901]
[1728395723979,0.40901,2445.8,2445.2,3.2078]
[1728395723980,3.2078,2446.3,2446.0,0.40896]
[1728395724178,3.2078,2446.3,2445.6,1.02258]
[1728395724179,0.40896,2446.1,2445.6,1.02258]
[1728395724378,1.02235,2446.2,2445.6,0.40903]
[1728395724584,8.16013,2446.3,2445.6,1.0226]
[1728395724791,8.16013,2446.3,2445.5,0.4207]
[1728395724792,3.2078,2446.3,2445.5,0.4207]
[1728395724988,0.409,2445.9,2445.5,0.4207]
[1728395725188,1.02245,2446.0,2445.5,0.4207]
[1728395725383,4.23025,2446.0,2445.5,0.4207]
[1728395725583,0.40903,2445.7,2445.6,0.40903]
[1728395726689,0.40905,2445.5,2445.4,0.40905]
[1728395727082,0.40909,2445.3,2445.2,3.2078]
[1728395727287,0.40912,2445.1,2445.0,0.40913]
[1728395727487,0.40914,2445.0,2444.9,0.40914]
[1728395727890,0.40913,2445.1,2445.0,0.40913]
[1728395728088,0.40908,2445.4,2445.3,0.40908]
[1728395728593,0.40903,2445.7,2445.6,0.40902]
[1728395728892,1.86648,2445.9,2445.1,1.02278]
[1728395729090,1.02256,2445.7,2445.1,1.02278]
[1728395729487,0.40906,2445.5,2445.4,0.40906]
[1728395729682,0.40901,2445.8,2445.7,0.40901]
[1728395729887,0.8366,2445.9,2445.8,0.409]
[1728395730085,0.8366,2445.9,2445.2,3.2078]
[1728395730086,0.4276,2445.9,2445.2,3.2078]
[1728395730285,0.40903,2445.7,2445.6,0.40903]
[1728395730598,0.4276,2445.9,2445.2,4.23056]
[1728395730894,0.40901,2445.8,2445.7,0.40901]
[1728395731597,3.2078,2446.1,2445.5,1.41353]
[1728395731896,0.40901,2445.8,2445.7,0.409]
[1728395732103,0.40898,2446.0,2445.9,0.40898]
[1728395732393,0.40902,2445.8,2445.7,0.40901]
[1728395732589,5.11043,2446.0,2445.9,0.40897]
[1728395732590,0.40898,2446.0,2445.9,0.40897]
[1728395732986,4.49698,2446.0,2445.9,0.40897]
[1728395733186,0.40899,2445.9,2445.8,0.40899]
[1728395733391,0.40898,2446.0,2445.6,1.0226]
[1728395733593,0.409,2445.9,2445.8,0.40899]
[1728395734095,0.40903,2445.7,2445.6,0.40902]
[1728395734293,1.02248,2445.9,2445.5,0.3909]
[1728395734693,0.40902,2445.7,2445.6,0.40904]
[1728395734898,0.40904,2445.6,2445.5,0.79994]
[1728395735594,0.40904,2445.6,2445.5,0.40904]
[1728395735798,0.40905,2445.6,2445.5,0.40904]
[1728395736095,0.4241,2445.9,2445.5,0.40904]
[1728395736291,0.40903,2445.7,2445.6,0.40902]
[1728395736892,0.40906,2445.6,2445.5,0.40904]
[1728395737598,0.40906,2445.5,2445.4,0.40905]
[1728395737793,0.40906,2445.5,2445.1,1.42068]
[1728395737794,0.40904,2445.7,2445.6,0.40903]
[1728395738597,0.40904,2445.7,2445.4,0.40905]
[1728395738598,0.40906,2445.5,2445.4,0.40905]
[1728395739000,0.4241,2445.9,2445.2,1.02276]
[1728395739194,0.40906,2445.5,2445.4,0.40904]
[1728395739905,0.4091,2445.3,2445.2,0.40909]
[1728395740201,0.40908,2445.5,2445.4,0.40906]
[1728395740401,0.4091,2445.3,2445.2,0.40909]
[1728395741690,0.4241,2445.9,2445.1,0.3979]
[1728395741900,0.40908,2445.4,2445.3,0.40906]
[1728395742101,0.4241,2445.9,2445.1,0.3979]
[1728395742297,0.40904,2445.7,2445.6,0.40902]
[1728395742795,4.49784,2445.7,2445.6,0.40902]
[1728395742992,0.40898,2446.0,2445.9,0.40897]
[1728395743302,3.2078,2446.4,2445.5,5.25308]
[1728395743502,3.2078,2446.4,2446.1,0.40894]
[1728395743503,0.40895,2446.2,2446.1,0.40894]
[1728395743700,3.2078,2446.4,2445.8,0.4054]
[1728395744003,3.2078,2446.4,2446.2,0.40893]
[1728395744004,0.40893,2446.3,2446.2,0.40893]
[1728395744499,0.40894,2446.2,2446.1,0.40894]
[1728395744697,3.2078,2446.4,2445.9,3.2078]
[1728395744903,3.2078,2446.1,2445.6,0.4037]
[1728395745200,0.40902,2445.7,2445.6,0.4037]
[1728395745394,4.23022,2446.1,2445.2,1.82156]
[1728395745395,0.40904,2445.6,2445.5,0.40905]
[1728395745596,0.40909,2445.3,2445.1,0.82352]
[1728395745901,0.40905,2445.6,2445.5,0.40905]
[1728395746601,0.40903,2445.7,2445.6,0.40903]
[1728395746800,1.02248,2445.9,2445.3,1.43971]
[1728395746998,0.40904,2445.6,2445.5,0.40904]
[1728395747200,0.40903,2445.7,2445.6,0.40903]
[1728395747591,4.49783,2445.7,2445.6,0.40903]
[1728395748301,0.40903,2445.7,2445.6,0.40903]
[1728395748699,0.40905,2445.6,2445.5,0.40904]
[1728395749493,0.40905,2445.6,2445.3,0.417]
[1728395749494,0.40903,2445.7,2445.6,0.40903]
[1728395749694,1.02243,2446.0,2445.7,0.409]
[1728395749902,0.409,2445.9,2445.8,0.40899]
[1728395750401,0.40898,2446.0,2445.9,0.40897]
[1728395750906,4.088,2446.0,2445.7,1.02255]
[1728395751093,0.40898,2446.0,2445.9,0.40897]
[1728395751300,3.2078,2446.1,2446.0,0.40897]
[1728395751501,3.61675,2446.1,2446.0,0.40897]
[1728395751806,0.40895,2446.1,2446.0,0.40897]
[1728395752203,0.40899,2445.9,2445.8,0.82939]
[1728395752399,0.40901,2445.8,2445.7,0.409]
[1728395752907,0.40903,2445.7,2445.6,0.40902]
[1728395753403,0.40902,2445.8,2445.7,0.40901]
[1728395753797,0.40902,2445.8,2445.4,1.44304]
[1728395753798,0.40904,2445.7,2445.6,0.40902]
[1728395754607,0.40907,2445.4,2445.3,0.82608]
[1728395755506,0.40906,2445.5,2445.4,0.40905]
[1728395755806,1.0226,2445.6,2445.3,0.417]
[1728395755999,1.0226,2445.6,2445.1,0.432]
[1728395756206,4.0201,2445.8,2445.1,0.432]
[1728395756407,0.4091,2445.3,2445.2,0.40909]
[1728395756912,0.40907,2445.5,2445.4,0.40907]
[1728395757613,1.02259,2445.7,2445.1,1.0228]
[1728395757907,0.40905,2445.6,2445.5,0.40904]
[1728395758309,1.02259,2445.7,2445.6,0.40902]
[1728395758310,0.40904,2445.7,2445.6,0.40902]
[1728395759007,4.23029,2445.9,2445.1,1.02277]
[1728395759213,0.40906,2445.5,2445.4,0.40905]
[1728395759813,0.4091,2445.3,2445.2,0.40909]
[1728395760211,0.4018,2445.5,2445.0,1.02285]
[1728395760409,1.42444,2445.5,2445.0,1.02285]
[1728395760609,0.40908,2445.4,2445.3,0.40907]
[1728395761916,0.40903,2445.7,2445.6,0.40902]
[1728395762108,0.40903,2445.7,2445.0,5.2535]
[1728395762109,3.2078,2445.8,2445.0,3.2078]
[1728395762309,0.40911,2445.3,2445.2,0.40909]
[1728395762914,3.9891,2445.7,2444.9,0.8629]
[1728395763111,3.61686,2445.5,2445.4,0.40907]
[1728395763314,0.40902,2445.8,2445.7,0.40901]
[1728395763614,0.40908,2445.4,2445.3,0.40907]
[1728395763813,0.4091,2445.3,2445.2,0.40909]
[1728395764205,9.4890192,2445.9,2445.2,7.2796]
[1728395764406,0.40905,2445.6,2445.5,0.40903]
[1728395765019,1.02252,2445.8,2445.2,4.21276]
[1728395765315,0.40903,2445.8,2445.7,0.40901]
[1728395765510,1.02247,2445.9,2445.6,0.40903]
[1728395765511,0.40904,2445.7,2445.6,0.40903]
[1728395765717,0.40905,2445.6,2445.5,0.40903]
[1728395766614,4.23033,2445.8,2445.1,1.02277]
[1728395766818,0.40914,2445.1,2445.0,0.40912]
[1728395767011,0.40914,2445.1,2444.9,0.4351]
[1728395767012,0.40916,2445.0,2444.9,0.40915]
[1728395767209,0.40916,2444.9,2444.8,0.40915]
[1728395767420,1.02282,2445.1,2444.7,0.3934]
[1728395767714,0.40922,2444.5,2444.4,0.40923]
[1728395768015,3.2078,2444.8,2444.1,3.9888]
[1728395768224,0.40927,2444.2,2444.1,1.20808]
[1728395768715,1.0231,2444.4,2443.9,3.2078]
[1728395768910,0.40929,2444.1,2444.0,0.4093]
[1728395769113,0.4093,2444.0,2443.9,0.40932]
[1728395769310,0.437,2444.3,2443.8,0.40933]
[1728395769511,3.2078,2444.2,2443.6,4.0491]
[1728395769807,0.4093,2444.1,2443.9,0.40931]
[1728395770013,3.6448,2444.3,2443.6,4.0491]
[1728395770408,0.40929,2444.1,2444.0,0.4093]
[1728395770709,3.6448,2444.3,2443.6,4.0491]
[1728395770916,0.40925,2444.4,2444.2,0.40926]
[1728395771317,0.40925,2444.4,2444.3,0.40925]
[1728395771514,3.2078,2444.6,2443.9,1.02331]
[1728395771710,3.2078,2444.6,2444.2,0.40926]
[1728395771920,3.2078,2444.6,2443.7,4.95339]
[1728395772222,0.40926,2444.3,2444.2,0.40926]
[1728395772411,1.02306,2444.5,2443.6,4.0491]
[1728395772611,3.2078,2444.0,2443.2,3.2078]
[1728395772816,4.0912,2444.4,2442.9,0.3995]
[1728395772817,4.23123,2443.6,2442.9,0.3995]
[1728395773019,0.40946,2443.1,2443.0,0.40946]
[1728395773228,0.40943,2443.3,2443.2,0.40944]
[1728395773523,4.23126,2443.6,2442.9,0.3995]
[1728395773725,0.40944,2443.2,2443.1,0.40945]
[1728395774018,0.40943,2443.3,2443.2,0.40943]
[1728395774324,0.40946,2443.1,2442.9,0.80897]
[1728395775121,0.40947,2443.0,2442.9,0.80897]
[1728395775417,3.2078,2443.3,2442.9,0.3995]
[1728395775617,0.40947,2443.0,2442.7,0.4269]
[1728395775817,3.2078,2443.3,2442.8,0.40949]
[1728395775818,0.40949,2442.9,2442.8,0.40949]
[1728395776123,0.40947,2443.0,2442.8,0.4095]
[1728395776315,0.4095,2442.9,2442.8,0.4095]
[1728395776517,0.40947,2443.0,2442.7,0.8364]
[1728395776716,0.40949,2442.9,2442.8,0.40949]
[1728395776922,0.4095,2442.8,2442.7,0.83641]
[1728395777121,0.40952,2442.7,2442.6,0.4035]
[1728395777321,3.2078,2442.9,2442.2,0.4149]
[1728395777519,0.40953,2442.7,2442.6,0.40953]
[1728395777720,1.02368,2443.1,2442.3,3.2078]
[1728395777926,4.64918,2443.3,2442.3,7.1378]
[1728395778120,0.40948,2443.0,2442.9,0.40948]
[1728395778820,0.40944,2443.2,2443.1,0.40945]
[1728395779027,3.61723,2443.3,2443.2,0.40944]
[1728395779326,3.2078,2443.3,2443.2,0.40944]
[1728395779929,0.4094,2443.5,2443.0,0.4065]
[1728395780221,0.40939,2443.5,2443.0,0.4065]
[1728395780422,0.40942,2443.3,2443.2,0.40942]
[1728395781321,0.40943,2443.3,2443.2,0.40942]
[1728395781925,0.40939,2443.5,2443.4,0.4094]
[1728395782122,0.40935,2443.8,2443.7,0.40935]
[1728395782326,0.83603,2443.9,2443.8,0.40934]
[1728395782531,3.2078,2444.1,2443.3,4.23133]
[1728395782718,0.40932,2444.0,2443.9,0.40932]
[1728395782923,5.15822,2444.2,2443.8,0.40933]
[1728395782924,0.40933,2443.9,2443.8,0.40933]
[1728395783331,0.40931,2444.0,2443.9,0.40931]
[1728395783521,1.84477,2444.3,2443.5,1.02348]
[1728395783522,0.40929,2444.1,2443.7,1.02339]
[1728395783825,1.84477,2444.3,2443.6,0.4105]
[1728395784029,0.40937,2443.6,2443.5,0.40938]
[1728395784430,0.40936,2443.7,2443.6,0.40936]
[1728395785126,4.23102,2444.1,2443.4,0.8223]
[1728395785332,3.2078,2444.1,2444.0,0.4093]
[1728395785532,3.2078,2444.1,2443.6,3.2078]
[1728395785533,1.02311,2444.4,2443.7,1.02338]
[1728395785830,0.40923,2444.5,2444.4,0.40923]
[1728395786226,4.23084,2444.6,2444.0,0.4139]
[1728395786227,0.40922,2444.6,2444.5,0.40922]
[1728395786426,0.436,2444.7,2444.2,0.40926]
[1728395786427,0.40926,2444.3,2444.2,0.40926]
[1728395786830,4.66679,2444.7,2444.0,0.8179]
[1728395787035,0.40924,2444.4,2444.3,0.40924]
[1728395787233,3.6438,2444.7,2444.0,0.8179]
[1728395787428,3.6438,2444.7,2444.2,0.40927]
[1728395787429,0.40927,2444.3,2444.2,0.40927]
[1728395787829,4.66678,2444.7,2444.0,0.8179]
[1728395788028,0.40927,2444.2,2444.1,0.40928]
[1728395788225,3.6438,2444.7,2444.0,0.8179]
[1728395788429,3.6438,2444.7,2444.0,1.84116]
[1728395788430,1.02302,2444.6,2444.0,1.84116]
[1728395788637,4.66679,2444.7,2444.0,0.8179]
[1728395788833,0.40923,2444.5,2444.4,0.40924]
[1728395789230,4.135,2445.2,2444.4,4.0912]
[1728395789432,3.2078,2445.6,2444.7,3.93]
[1728395789637,3.2078,2445.6,2445.5,0.40905]
[1728395789939,3.2078,2445.6,2445.0,0.40912]
[1728395789940,1.02264,2445.5,2445.0,0.40912]
[1728395790132,3.2078,2445.6,2444.8,0.8621]
[1728395790328,1.02269,2445.4,2444.8,0.8621]
[1728395790633,0.40915,2444.9,2444.8,1.27126]
[1728395790834,3.2078,2445.3,2444.5,4.23084]
[1728395790835,0.4092,2444.6,2444.5,0.40921]
[1728395791029,0.40923,2444.5,2444.4,0.40923]
[1728395791227,0.40922,2444.5,2444.4,0.40923]
[1728395791439,3.6124,2445.0,2444.5,0.40921]
[1728395791440,0.40921,2444.6,2444.5,0.40921]
[1728395791754,0.40914,2445.0,2444.9,0.40914]
[1728395792044,0.40914,2445.0,2444.5,1.02302]
[1728395792045,0.40917,2444.8,2444.7,0.40918]
[1728395792548,0.40916,2444.9,2444.8,0.40916]
[1728395792751,0.40918,2444.8,2444.7,0.40918]
[1728395793253,0.40916,2444.9,2444.8,0.40916]
[1728395793447,1.02282,2445.1,2444.4,1.02308]
[1728395793654,0.40918,2444.8,2444.7,0.40917]
[1728395793945,0.40919,2444.7,2444.3,0.3966]
[1728395794151,0.40922,2444.6,2444.5,0.40921]
[1728395794347,0.40924,2444.5,2444.4,0.40923]
[1728395794745,0.40921,2444.6,2444.5,0.40921]
[1728395795448,3.2078,2445.0,2444.5,4.0904]
[1728395795647,0.40916,2444.9,2444.8,0.40916]
[1728395795839,0.40917,2444.8,2444.7,0.40917]
[1728395796243,1.02282,2445.1,2444.6,0.408]
[1728395796543,0.40917,2444.9,2444.8,0.40916]
[1728395796747,0.40917,2444.9,2444.6,0.408]
[1728395796748,0.40917,2444.8,2444.7,0.40917]
[1728395797354,0.40916,2444.9,2444.8,0.40916]
[1728395797753,0.40915,2445.0,2444.9,0.40914]
[1728395798250,7.5689,2445.3,2444.2,4.66186]
[1728395798446,7.5689,2445.3,2444.4,0.40923]
[1728395798447,0.40923,2444.5,2444.4,0.40923]
[1728395798648,0.40919,2444.7,2444.6,0.40919]
[1728395798858,0.40916,2444.9,2444.8,0.40916]
[1728395799241,0.40916,2444.9,2444.5,4.23086]
[1728395799242,1.02281,2445.1,2444.5,4.23086]
[1728395799451,0.40916,2444.9,2444.8,0.40915]
[1728395799844,0.40916,2444.9,2444.5,4.23086]
[1728395799845,0.40918,2444.8,2444.7,0.40918]
[1728395800047,1.02286,2445.0,2444.5,3.2078]
[1728395800443,0.4092,2444.6,2444.5,3.61702]
[1728395800648,0.4092,2444.6,2444.5,3.2078]
[1728395801050,7.2982,2444.6,2443.8,0.423]
[1728395801357,0.40925,2444.4,2444.3,0.40925]
[1728395801856,0.40923,2444.5,2444.4,0.40922]
[1728395802056,6.00811,2444.9,2444.6,0.40919]
[1728395802252,0.40916,2444.9,2444.8,0.40915]
[1728395802459,0.40918,2444.8,2444.7,0.40918]
[1728395802660,1.02286,2445.0,2444.8,0.40916]
[1728395802661,0.40917,2444.9,2444.8,0.40916]
[1728395803362,1.02286,2445.0,2444.5,1.02305]
[1728395803561,0.40918,2444.8,2444.7,0.40917]
[1728395803761,1.02286,2445.0,2444.5,1.02305]
[1728395803958,0.83058,2445.4,2445.3,0.40909]
[1728395804160,0.83058,2445.4,2444.7,1.02297]
[1728395804161,0.40905,2445.6,2445.1,1.02279]
[1728395804363,0.40905,2445.6,2445.5,0.40905]
[1728395805057,0.409,2445.8,2445.7,0.40902]
[1728395805258,5.05529,2446.1,2445.2,1.44725]
[1728395805454,5.05529,2446.1,2445.8,0.409]
[1728395805455,0.409,2445.9,2445.8,0.409]
[1728395805962,0.40901,2445.8,2445.7,0.40901]
[1728395806156,1.84749,2446.1,2445.7,0.40901]
[1728395806362,1.84749,2446.1,2445.5,0.3897]
[1728395806363,0.8251,2446.1,2445.5,0.3897]
[1728395806569,0.409,2445.9,2445.8,0.409]
[1728395806864,0.409,2445.9,2445.5,0.3897]
[1728395806865,0.409,2445.8,2445.7,0.40901]
[1728395807456,1.02243,2446.0,2445.5,0.3897]
[1728395807755,0.40901,2445.8,2445.7,0.40901]
[1728395808259,1.02243,2446.0,2445.5,0.3897]
[1728395808459,0.40901,2445.8,2445.7,0.40901]
[1728395809062,0.409,2445.9,2445.8,0.40899]
[1728395809263,1.02244,2446.0,2445.5,0.3897]
[1728395809459,0.40902,2445.8,2445.7,0.40901]
[1728395809657,4.0329,2446.1,2445.5,0.3897]
[1728395809864,0.409,2445.9,2445.8,0.409]
[1728395810168,0.8251,2446.1,2445.5,0.3897]
[1728395810363,0.409,2445.9,2445.8,0.409]
[1728395810960,0.40901,2445.8,2445.5,0.3897]
[1728395811157,0.40901,2445.8,2445.7,0.40901]
[1728395811466,0.40901,2445.8,2445.4,0.40907]
[1728395811467,0.409,2445.8,2445.4,0.40907]
[1728395811764,0.40907,2445.4,2445.3,0.40907]
[1728395812062,0.40906,2445.5,2445.4,0.40906]
[1728395812265,1.02262,2445.6,2445.2,3.6323]
[1728395812458,4.23034,2445.8,2445.2,0.4245]
[1728395812768,0.40908,2445.4,2445.3,0.40908]
[1728395812957,0.40906,2445.5,2445.2,0.4245]
[1728395813259,0.40906,2445.5,2445.4,0.40907]
[1728395813660,0.40908,2445.4,2445.3,0.40908]
[1728395813859,1.02261,2445.6,2445.2,0.4245]
[1728395814158,0.40906,2445.5,2445.4,0.40905]
[1728395814362,0.40908,2445.4,2445.3,0.40908]
[1728395814562,0.4091,2445.2,2445.1,0.83711]
[1728395814760,3.2078,2445.8,2445.1,0.428]
[1728395814961,0.40907,2445.5,2445.4,0.40906]
[1728395815758,0.40907,2445.5,2445.4,0.40907]
[1728395815759,0.40906,2445.5,2445.4,0.40907]
[1728395815964,0.40906,2445.5,2445.3,0.40907]
[1728395816269,0.40907,2445.4,2445.3,0.40907]
[1728395817679,0.4091,2445.3,2445.2,0.40909]
[1728395817866,1.02266,2445.5,2444.9,3.5971]
[1728395817867,1.02269,2445.4,2444.9,3.5971]
[1728395818173,0.40912,2445.2,2445.1,0.40911]
[1728395818768,0.40914,2445.1,2445.0,0.40913]
[1728395819369,0.40914,2445.1,2444.9,0.3893]
[1728395819577,0.40914,2445.0,2444.9,0.79845]
[1728395819768,0.40914,2445.0,2444.9,0.3893]
[1728395819971,0.40914,2445.0,2444.9,0.79845]
[1728395821166,0.40912,2445.2,2445.1,0.40911]
[1728395821771,1.02273,2445.3,2444.9,0.3893]
[1728395821977,0.40915,2444.9,2444.8,0.40916]
[1728395823076,0.40915,2445.0,2444.9,0.40914]
[1728395825267,1.02274,2445.3,2444.6,4.66141]
[1728395825573,0.40913,2445.1,2445.0,0.40912]
[1728395825878,0.40918,2444.9,2444.8,0.40916]
[1728395826675,1.02281,2445.1,2444.6,3.6384]
[1728395826875,0.40915,2445.0,2444.9,0.40914]
[1728395827677,0.40917,2444.9,2444.8,0.40915]
[1728395828083,0.40917,2444.9,2444.6,3.6384]
[1728395828274,3.2078,2445.2,2444.3,0.40925]
[1728395828275,3.2078,2444.7,2444.3,0.40925]
[1728395828476,0.40927,2444.2,2444.1,3.61707]
[1728395828683,3.2078,2444.7,2444.0,0.7949]
[1728395828684,0.40929,2444.1,2444.0,0.7949]
[1728395828980,0.40932,2444.0,2443.9,0.40931]
[1728395829583,0.40933,2443.9,2443.8,0.40933]
[1728395830077,1.02324,2444.1,2443.7,3.2078]
[1728395830283,3.2078,2444.4,2443.7,3.2078]
[1728395830472,0.40922,2444.6,2444.5,0.40921]
[1728395830785,1.023,2444.7,2444.1,4.231]
[1728395830786,0.8166,2444.9,2444.2,0.4085]
[1728395831081,4.23074,2444.8,2444.2,0.7941]
[1728395831274,0.40921,2444.6,2444.5,0.40921]
[1728395833489,0.40923,2444.5,2444.4,0.40922]
[1728395833785,0.40923,2444.5,2444.2,0.7941]
[1728395834085,0.40925,2444.4,2444.3,0.40924]
[1728395834473,0.40923,2444.5,2444.4,0.40921]
[1728395834676,1.02301,2444.7,2444.6,0.40918]
[1728395834677,0.4092,2444.7,2444.6,0.40918]
[1728395834877,0.40913,2445.1,2445.0,0.40912]
[1728395835078,0.40912,2445.2,2445.1,0.4091]
[1728395835282,1.0227,2445.4,2444.8,1.02292]
[1728395835482,0.40909,2445.4,2445.3,0.40908]
[1728395835677,1.43175,2445.4,2445.2,0.40909]
[1728395835880,0.4091,2445.3,2445.2,0.40909]
[1728395836483,1.02268,2445.4,2444.9,0.3891]
[1728395836679,0.40913,2445.1,2445.0,0.40912]
[1728395836882,0.40911,2445.2,2445.1,0.40911]
[1728395837085,0.40908,2445.4,2445.3,0.40907]
[1728395837289,3.2078,2445.5,2445.1,3.2078]
[1728395837785,3.2078,2445.5,2445.2,0.4227]
[1728395837992,0.40908,2445.4,2445.3,0.40907]
[1728395838488,3.2078,2445.5,2445.2,0.4227]
[1728395838489,0.40909,2445.3,2445.2,0.83178]
[1728395838881,0.40909,2445.3,2445.2,4.92138]
[1728395839080,4.23045,2445.5,2445.1,3.61692]
[1728395839285,0.4091,2445.2,2445.1,0.40912]
[1728395840190,0.4093,2445.8,2445.1,7.2974]
[1728395840387,0.40905,2445.6,2445.5,0.40904]
[1728395840892,0.8079,2445.8,2445.2,0.4227]
[1728395841098,6.8113,2446.2,2445.4,7.42045]
[1728395841286,0.40899,2445.9,2445.8,0.40899]
[1728395841593,1.02239,2446.1,2445.5,1.44533]
[1728395841594,1.02239,2446.1,2445.5,0.4227]
[1728395841789,0.40904,2445.7,2445.6,0.40903]
[1728395843188,0.40901,2445.8,2445.7,0.40901]
[1728395843696,1.43197,2445.9,2445.5,0.4227]
[1728395843894,0.40905,2445.5,2445.4,3.2078]
[1728395844189,0.40907,2445.4,2445.3,0.40908]
[1728395844591,1.02261,2445.6,2445.2,0.4227]
[1728395844893,0.40912,2445.1,2445.0,3.2078]
[1728395845096,1.43067,2445.5,2445.0,3.2078]
[1728395845297,0.4091,2445.3,2445.2,0.40909]
[1728395845793,0.40908,2445.4,2445.3,0.40907]
[1728395846793,1.02268,2445.4,2445.1,0.4192]
[1728395846986,0.40911,2445.2,2445.1,0.40911]
[1728395847189,0.40911,2445.2,2445.0,3.2078]
[1728395847190,0.81248,2445.4,2445.3,0.40909]
[1728395847392,0.408,2445.5,2445.3,0.40909]
[1728395847591,3.2078,2445.6,2445.0,6.3978]
[1728395847794,0.4091,2445.3,2445.2,0.40909]
[1728395848199,3.2078,2445.6,2445.0,6.3978]
[1728395848601,0.4091,2445.3,2445.2,0.4091]
[1728395849606,3.2078,2445.6,2445.0,6.3978]
[1728395849805,3.2078,2445.6,2445.2,3.19]
[1728395850010,0.40908,2445.4,2445.3,0.40907]
[1728395850805,3.2078,2445.6,2445.0,6.3978]
[1728395851102,3.2078,2445.6,2445.4,0.40905]
[1728395851103,0.40906,2445.5,2445.4,0.40905]
[1728395851703,3.2078,2445.6,2445.2,3.19]
[1728395852010,3.2078,2445.6,2445.1,0.4091]
[1728395852011,0.40912,2445.2,2445.1,0.4091]
[1728395852507,0.4091,2445.3,2445.2,0.40909]
[1728395852708,0.40905,2445.6,2445.5,0.40904]